[Event "Tournoi de MI de l'Echiquier du Pays de Bray"]
[Site "Gournay-en-Bray, France"]
[Date "2023.05.16"]
[Round "4.3"]
[White "DGEBUADZE, Alexander"]
[Black "DUBESSAY, Bastien"]
[Result "1-0"]
[TimeControl "1h30/40 + 30 (30s/c)"]
[WhiteTitle "GM"]
[BlackTitle "FM"]
[WhiteFideId "203882"]
[BlackFideId "650048"]
[WhiteElo "2435"]
[BlackElo "2283"]

1. e4 {[%clk 01:30:19]} {[%emt 00:00:40]} e6 {[%clk 01:30:53]} {[%emt
00:00:07]} 2. d3 {[%clk 01:30:40]} {[%emt 00:00:09]} d5 {[%clk 01:30:32]}
{[%emt 00:00:51]} 3. Nd2 {[%clk 01:30:54]} {[%emt 00:00:17]} c5 {[%clk
01:30:31]} {[%emt 00:00:31]} 4. Ngf3 {[%clk 01:31:15]} {[%emt 00:00:09]} Nf6
{[%clk 01:30:37]} {[%emt 00:00:24]} 5. g3 {[%clk 01:31:31]} {[%emt 00:00:13]}
Nc6 {[%clk 01:30:44]} {[%emt 00:00:23]} 6. Bg2 {[%clk 01:31:55]} {[%emt
00:00:06]} Be7 {[%clk 01:30:52]} {[%emt 00:00:22]} 7. O-O {[%clk 01:32:18]}
{[%emt 00:00:07]} O-O {[%clk 01:31:19]} {[%emt 00:00:03]} 8. Re1 {[%clk
01:32:33]} {[%emt 00:00:15]} Qc7 {[%clk 01:30:50]} {[%emt 00:00:29]} 9. Qe2
{[%clk 01:26:26]} {[%emt 00:06:38]} b5 {[%clk 01:30:43]} {[%emt 00:01:07]} 10.
exd5 {[%clk 01:23:10]} {[%emt 00:03:46]} exd5 {[%clk 01:20:05]} {[%emt
00:11:08]} 11. Nb3 {[%clk 01:22:29]} {[%emt 00:01:10]} Bf5 {[%clk 01:08:23]}
{[%emt 00:12:11]} 12. Bf4 {[%clk 01:14:22]} {[%emt 00:08:37]} Bd6 {[%clk
01:01:56]} {[%emt 00:06:58]} 13. Bxd6 {[%clk 01:11:14]} {[%emt 00:03:38]} Qxd6
{[%clk 01:02:17]} {[%emt 00:00:09]} 14. Qe3 {[%clk 01:11:38]} {[%emt 00:00:06]}
Nb4 {[%clk 00:53:47]} {[%emt 00:09:00]} 15. Qd2 {[%clk 01:07:56]} {[%emt
00:04:11]} Rac8 {[%clk 00:48:57]} {[%emt 00:05:20]} 16. a3 {[%clk 01:06:10]}
{[%emt 00:02:16]} Nc6 {[%clk 00:47:09]} {[%emt 00:02:18]} 17. Qe3 {[%clk
01:02:02]} {[%emt 00:04:37]} Nd7 {[%clk 00:43:23]} {[%emt 00:04:16]} 18. c3
{[%clk 00:53:34]} {[%emt 00:08:58]} h6 {[%clk 00:38:39]} {[%emt 00:05:15]} 19.
d4 {[%clk 00:52:36]} {[%emt 00:01:29]} c4 {[%clk 00:38:49]} {[%emt 00:00:19]}
20. Nc5 {[%clk 00:52:12]} {[%emt 00:00:53]} Nf6 {[%clk 00:33:49]} {[%emt
00:05:30]} 21. Ne5 {[%clk 00:51:15]} {[%emt 00:01:27]} Rfe8 {[%clk 00:28:23]}
{[%emt 00:05:56]} 22. Qf4 {[%clk 00:51:32]} {[%emt 00:00:13]} Bh7 {[%clk
00:23:58]} {[%emt 00:04:55]} 23. Bh3 {[%clk 00:35:56]} {[%emt 00:16:07]} g5
{[%clk 00:15:34]} {[%emt 00:08:54]} 24. Nxf7 {[%clk 00:23:01]} {[%emt
00:13:25]} Qxf4 {[%clk 00:13:01]} {[%emt 00:03:03]} 25. Nxh6+ {[%clk 00:23:25]}
{[%emt 00:00:06]} Kg7 {[%clk 00:13:11]} {[%emt 00:00:20]} 26. gxf4 {[%clk
00:23:48]} {[%emt 00:00:06]} Kxh6 {[%clk 00:12:47]} {[%emt 00:00:54]} 27. Bxc8
{[%clk 00:24:12]} {[%emt 00:00:06]} Rxc8 {[%clk 00:11:15]} {[%emt 00:02:02]} 28.
Re6 {[%clk 00:24:33]} {[%emt 00:00:09]} Kg7 {[%clk 00:11:35]} {[%emt 00:00:11]}
29. fxg5 {[%clk 00:24:55]} {[%emt 00:00:08]} Ne4 {[%clk 00:11:56]} {[%emt
00:00:09]} 30. Nxe4 {[%clk 00:23:46]} {[%emt 00:01:38]} Bxe4 {[%clk 00:12:22]}
{[%emt 00:00:05]} 31. Re1 {[%clk 00:21:09]} {[%emt 00:03:06]} Na5 {[%clk
00:10:50]} {[%emt 00:02:02]} 32. Rf6 {[%clk 00:21:14]} {[%emt 00:00:23]} Rc7
{[%clk 00:09:03]} {[%emt 00:02:18]} 33. f3 {[%clk 00:21:31]} {[%emt 00:00:13]}
Bg6 {[%clk 00:09:28]} {[%emt 00:00:06]} 34. Kg2 {[%clk 00:18:14]} {[%emt
00:03:46]} Nb3 {[%clk 00:09:39]} {[%emt 00:00:20]} 35. Kg3 {[%clk 00:17:55]}
{[%emt 00:00:49]} a5 {[%clk 00:04:28]} {[%emt 00:05:42]} 36. Kg4 {[%clk
00:17:15]} {[%emt 00:01:09]} b4 {[%clk 00:04:54]} {[%emt 00:00:04]} 37. h4
{[%clk 00:16:32]} {[%emt 00:01:12]} bxc3 {[%clk 00:05:10]} {[%emt 00:00:15]} 38.
bxc3 {[%clk 00:16:55]} {[%emt 00:00:08]} Nd2 {[%clk 00:05:35]} {[%emt
00:00:05]} 39. Rd1 {[%clk 00:14:49]} {[%emt 00:02:34]} Nb3 {[%clk 00:05:59]}
{[%emt 00:00:07]} 40. h5 {[%clk 00:14:42]} {[%emt 00:00:36]} Bd3 {[%clk
00:06:13]} {[%emt 00:00:16]} 41. h6+ {[%clk 00:15:03]} {[%emt 00:00:09]} Kh7
{[%clk 00:03:29]} {[%emt 00:03:14]} 42. Kh5 {[%clk 00:10:38]} {[%emt 00:04:55]}
Re7 {[%clk 00:03:46]} {[%emt 00:00:13]} 43. g6+ {[%clk 00:10:49]} {[%emt
00:00:19]} Bxg6+ {[%clk 00:04:13]} {[%emt 00:00:04]} 44. Rxg6 {[%clk 00:11:12]}
{[%emt 00:00:06]} Re2 {[%clk 00:04:39]} {[%emt 00:00:04]} 45. Rg7+ {[%clk
00:10:23]} {[%emt 00:01:19]} Kh8 {[%clk 00:04:55]} {[%emt 00:00:14]} 46. Rdg1
{[%clk 00:09:27]} {[%emt 00:01:25]} Rh2+ {[%clk 00:04:57]} {[%emt 00:00:29]} 47.
Kg6 {[%clk 00:09:36]} {[%emt 00:00:20]} Nd2 {[%clk 00:05:21]} {[%emt 00:00:07]}
48. h7 {[%clk 00:09:27]} {[%emt 00:00:39]} 1-0

[Event "Tournoi de MI de l'Echiquier du Pays de Bray"]
[Site "Gournay-en-Bray, France"]
[Date "2023.05.16"]
[Round "4.4"]
[White "TEREKHOV, Andrey"]
[Black "LEFEBVRE, Hervé"]
[Result "1-0"]
[TimeControl "1h30/40 + 30 (30s/c)"]
[WhiteTitle "FM"]
[BlackTitle "FM"]
[WhiteFideId "4121481"]
[BlackFideId "607363"]
[WhiteElo "2314"]
[BlackElo "2161"]

1. d4 {[%clk 01:30:57]} {[%emt 00:00:02]} Nf6 {[%clk 01:30:54]} {[%emt
00:00:06]} 2. c4 {[%clk 01:31:22]} {[%emt 00:00:05]} e6 {[%clk 01:30:33]}
{[%emt 00:00:51]} 3. Nf3 {[%clk 01:31:46]} {[%emt 00:00:06]} c5 {[%clk
01:28:41]} {[%emt 00:02:21]} 4. d5 {[%clk 01:31:58]} {[%emt 00:00:19]} exd5
{[%clk 01:28:59]} {[%emt 00:00:12]} 5. cxd5 {[%clk 01:32:24]} {[%emt 00:00:04]}
d6 {[%clk 01:29:23]} {[%emt 00:00:06]} 6. Nc3 {[%clk 01:32:43]} {[%emt
00:00:11]} g6 {[%clk 01:29:42]} {[%emt 00:00:10]} 7. Bf4 {[%clk 01:32:57]}
{[%emt 00:00:16]} Bg7 {[%clk 01:28:37]} {[%emt 00:01:35]} 8. h3 {[%clk
01:33:08]} {[%emt 00:00:19]} O-O {[%clk 01:28:51]} {[%emt 00:00:16]} 9. e3
{[%clk 01:33:34]} {[%emt 00:00:04]} Na6 {[%clk 01:29:09]} {[%emt 00:00:13]} 10.
Bxa6 {[%clk 01:32:51]} {[%emt 00:01:12]} bxa6 {[%clk 01:29:30]} {[%emt
00:00:08]} 11. Rc1 {[%clk 01:32:42]} {[%emt 00:00:39]} Rb8 {[%clk 01:23:56]}
{[%emt 00:06:04]} 12. b3 {[%clk 01:31:36]} {[%emt 00:01:35]} Bf5 {[%clk
01:13:27]} {[%emt 00:10:59]} 13. O-O {[%clk 01:22:24]} {[%emt 00:09:43]} Ne4
{[%clk 01:09:39]} {[%emt 00:04:17]} 14. Nxe4 {[%clk 01:13:22]} {[%emt
00:09:32]} Bxe4 {[%clk 01:10:02]} {[%emt 00:00:07]} 15. Nd2 {[%clk 00:59:56]}
{[%emt 00:13:57]} Bd3 {[%clk 00:54:26]} {[%emt 00:16:05]} 16. Re1 {[%clk
00:54:58]} {[%emt 00:05:28]} Rb4 {[%clk 00:44:57]} {[%emt 00:09:59]} 17. Nc4
{[%clk 00:48:53]} {[%emt 00:06:35]} Bxc4 {[%clk 00:45:04]} {[%emt 00:00:22]} 18.
Rxc4 {[%clk 00:49:07]} {[%emt 00:00:17]} a5 {[%clk 00:42:36]} {[%emt 00:02:58]}
19. e4 {[%clk 00:40:29]} {[%emt 00:09:08]} Re8 {[%clk 00:18:42]} {[%emt
00:24:25]} 20. Qd3 {[%clk 00:17:05]} {[%emt 00:23:54]} Qb6 {[%clk 00:05:37]}
{[%emt 00:13:35]} 21. Bd2 {[%clk 00:12:04]} {[%emt 00:05:31]} Qb5 {[%clk
00:01:51]} {[%emt 00:04:17]} 22. Bxb4 {[%clk 00:06:04]} {[%emt 00:06:30]} axb4
{[%clk 00:02:19]} {[%emt 00:00:02]} 23. h4 {[%clk 00:03:51]} {[%emt 00:02:42]}
h5 {[%clk 00:02:34]} {[%emt 00:00:14]} 24. Qf3 {[%clk 00:02:06]} {[%emt
00:02:16]} Qa5 {[%clk 00:02:28]} {[%emt 00:00:37]} 25. Rc2 {[%clk 00:01:23]}
{[%emt 00:01:12]} Qd8 {[%clk 00:02:41]} {[%emt 00:00:16]} 26. g3 {[%clk
00:01:30]} {[%emt 00:00:23]} Bd4 {[%clk 00:02:44]} {[%emt 00:00:27]} 27. Kg2
{[%clk 00:01:35]} {[%emt 00:00:24]} a5 {[%clk 00:02:40]} {[%emt 00:00:34]} 28.
Rce2 {[%clk 00:01:17]} {[%emt 00:00:48]} Qd7 {[%clk 00:02:11]} {[%emt
00:01:00]} 29. Qd3 {[%clk 00:01:03]} {[%emt 00:00:43]} a4 {[%clk 00:02:20]}
{[%emt 00:00:22]} 30. Qa6 {[%clk 00:01:02]} {[%emt 00:00:31]} axb3 {[%clk
00:02:04]} {[%emt 00:00:45]} 31. axb3 {[%clk 00:01:27]} {[%emt 00:00:05]} Bc3
{[%clk 00:01:13]} {[%emt 00:01:22]} 32. Rd1 {[%clk 00:01:25]} {[%emt 00:00:32]}
Re5 {[%clk 00:00:58]} {[%emt 00:00:45]} 33. f3 {[%clk 00:01:09]} {[%emt
00:00:45]} Qe7 {[%clk 00:01:06]} {[%emt 00:00:22]} 34. Ra2 {[%clk 00:00:37]}
{[%emt 00:01:03]} Kg7 {[%clk 00:01:20]} {[%emt 00:00:17]} 35. Qc8 {[%clk
00:00:50]} {[%emt 00:00:17]} g5 {[%clk 00:00:36]} {[%emt 00:01:14]} 36. Ra8
{[%clk 00:01:00]} {[%emt 00:00:20]} Rxe4 {[%clk 00:00:40]} {[%emt 00:00:26]} 37.
Qh8+ {[%clk 00:01:04]} {[%emt 00:00:26]} Kg6 {[%clk 00:01:07]} {[%emt
00:00:03]} 38. Rg8+ {[%clk 00:01:24]} {[%emt 00:00:10]} Kf5 {[%clk 00:01:34]}
{[%emt 00:00:04]} 39. Qh7+ {[%clk 00:01:41]} {[%emt 00:00:12]} 1-0

[Event "Tournoi de MI de l'Echiquier du Pays de Bray"]
[Site "Gournay-en-Bray, France"]
[Date "2023.05.16"]
[Round "4.5"]
[White "HÖGLAUER, Patrick"]
[Black "MOUHAMAD, Joachim"]
[Result "0-1"]
[TimeControl "1h30/40 + 30 (30s/c)"]
[WhiteTitle "FM"]
[BlackTitle "FM"]
[WhiteFideId "1270548"]
[BlackFideId "656410"]
[WhiteElo "2280"]
[BlackElo "2238"]

1. d4 {[%clk 01:30:55]} {[%emt 00:00:04]} d5 {[%clk 01:30:30]} {[%emt
00:00:30]} 2. c4 {[%clk 01:31:20]} {[%emt 00:00:05]} e6 {[%clk 01:30:43]}
{[%emt 00:00:16]} 3. Nc3 {[%clk 01:31:45]} {[%emt 00:00:05]} a6 {[%clk
01:30:48]} {[%emt 00:00:25]} 4. cxd5 {[%clk 01:29:50]} {[%emt 00:02:26]} exd5
{[%clk 01:31:13]} {[%emt 00:00:04]} 5. Nf3 {[%clk 01:30:14]} {[%emt 00:00:06]}
Nf6 {[%clk 01:30:37]} {[%emt 00:01:06]} 6. Bg5 {[%clk 01:30:17]} {[%emt
00:00:28]} Be6 {[%clk 01:30:43]} {[%emt 00:00:23]} 7. Qb3 {[%clk 01:27:44]}
{[%emt 00:03:04]} Nbd7 {[%clk 01:13:20]} {[%emt 00:17:53]} 8. e3 {[%clk
01:24:35]} {[%emt 00:03:40]} Ra7 {[%emt 00:48:22]} 9. Ne5 {[%clk 01:04:14]} Be7
{[%clk 00:45:57]} {[%emt 00:00:49]} 10. Be2 {[%clk 01:01:52]} {[%emt 00:02:52]}
O-O {[%clk 00:46:03]} {[%emt 00:00:23]} 11. Qd1 {[%clk 00:45:46]} {[%emt
00:16:37]} c6 {[%clk 00:45:34]} {[%emt 00:00:59]} 12. f4 {[%clk 00:43:02]}
{[%emt 00:03:14]} Nxe5 {[%clk 00:34:29]} {[%emt 00:11:35]} 13. dxe5 {[%clk
00:39:41]} {[%emt 00:03:51]} Nd7 {[%clk 00:34:03]} {[%emt 00:00:56]} 14. Bxe7
{[%clk 00:40:02]} {[%emt 00:00:09]} Qxe7 {[%clk 00:34:31]} {[%emt 00:00:02]} 15.
O-O {[%clk 00:39:34]} {[%emt 00:00:59]} f5 {[%clk 00:33:17]} {[%emt 00:01:43]}
16. Qd4 {[%clk 00:34:05]} {[%emt 00:06:00]} Raa8 {[%clk 00:32:37]} {[%emt
00:01:10]} 17. Rfd1 {[%clk 00:33:07]} {[%emt 00:01:28]} a5 {[%clk 00:32:16]}
{[%emt 00:00:51]} 18. Na4 {[%clk 00:28:03]} {[%emt 00:05:34]} Qb4 {[%clk
00:26:17]} {[%emt 00:06:29]} 19. a3 {[%clk 00:27:20]} {[%emt 00:01:12]} Qxd4
{[%clk 00:25:02]} {[%emt 00:01:45]} 20. exd4 {[%clk 00:24:37]} {[%emt
00:03:13]} Ra7 {[%clk 00:25:23]} {[%emt 00:00:09]} 21. Rdc1 {[%clk 00:23:40]}
{[%emt 00:01:28]} Kf7 {[%clk 00:25:33]} {[%emt 00:00:20]} 22. Kf2 {[%clk
00:22:12]} {[%emt 00:01:58]} Ke7 {[%clk 00:25:48]} {[%emt 00:00:15]} 23. Rc2
{[%clk 00:17:43]} {[%emt 00:04:59]} h6 {[%clk 00:25:12]} {[%emt 00:01:05]} 24.
h4 {[%clk 00:17:39]} {[%emt 00:00:34]} g6 {[%clk 00:23:47]} {[%emt 00:01:54]}
25. Rh1 {[%clk 00:16:51]} {[%emt 00:01:18]} Rg8 {[%clk 00:23:18]} {[%emt
00:00:59]} 26. Rh3 {[%clk 00:16:41]} {[%emt 00:00:40]} Bf7 {[%clk 00:19:05]}
{[%emt 00:04:43]} 27. Bd3 {[%clk 00:11:39]} {[%emt 00:05:33]} h5 {[%clk
00:13:33]} {[%emt 00:06:01]} 28. Rg3 {[%clk 00:09:33]} {[%emt 00:02:37]} Be6
{[%clk 00:12:37]} {[%emt 00:01:25]} 29. Be2 {[%clk 00:09:24]} {[%emt 00:00:39]}
Kf7 {[%clk 00:12:06]} {[%emt 00:01:01]} 30. Rc1 {[%clk 00:07:44]} {[%emt
00:02:10]} Rc8 {[%clk 00:12:03]} {[%emt 00:00:33]} 31. Rb3 {[%clk 00:06:42]}
{[%emt 00:01:32]} Ke7 {[%clk 00:12:05]} {[%emt 00:00:28]} 32. Ke1 {[%clk
00:05:31]} {[%emt 00:01:41]} Bf7 {[%clk 00:10:41]} {[%emt 00:01:55]} 33. Kd2
{[%clk 00:05:48]} {[%emt 00:00:13]} Be6 {[%clk 00:09:55]} {[%emt 00:01:15]} 34.
Bf1 {[%clk 00:04:18]} {[%emt 00:02:01]} Kf7 {[%clk 00:09:47]} {[%emt 00:00:37]}
35. Be2 {[%clk 00:03:05]} {[%emt 00:01:44]} Ke7 {[%clk 00:10:15]} {[%emt
00:00:02]} 36. Rg3 {[%clk 00:02:26]} {[%emt 00:01:09]} Bf7 {[%clk 00:10:08]}
{[%emt 00:00:37]} 37. Bd1 {[%clk 00:02:38]} {[%emt 00:00:18]} Be8 {[%clk
00:07:00]} {[%emt 00:03:38]} 38. Nc3 {[%clk 00:02:36]} {[%emt 00:00:33]} Raa8
{[%clk 00:06:37]} {[%emt 00:00:53]} 39. Bb3 {[%clk 00:02:13]} {[%emt 00:00:53]}
Bf7 {[%clk 00:03:53]} {[%emt 00:03:13]} 40. Re1 {[%clk 00:01:44]} {[%emt
00:01:00]} Ke6 {[%clk 00:00:50]} {[%emt 00:03:33]} 41. Ba2 {[%clk 00:24:28]}
{[%emt 00:08:16]} Rd8 {[%clk 00:30:01]} {[%emt 00:01:49]} 42. Ne2 {[%clk
00:22:09]} {[%emt 00:02:49]} Nf8 {[%clk 00:26:36]} {[%emt 00:03:54]} 43. Nc1
{[%clk 00:17:20]} {[%emt 00:05:20]} Ke7 {[%clk 00:26:33]} {[%emt 00:00:33]} 44.
Rb3 {[%clk 00:17:48]} {[%emt 00:00:02]} Ra7 {[%clk 00:25:21]} {[%emt 00:01:42]}
45. Nd3 {[%clk 00:18:06]} {[%emt 00:00:13]} Ne6 {[%clk 00:24:07]} {[%emt
00:01:44]} 46. Ke3 {[%clk 00:18:34]} {[%emt 00:00:02]} Be8 {[%clk 00:23:55]}
{[%emt 00:00:41]} 47. Rc1 {[%clk 00:18:09]} {[%emt 00:00:56]} Rb8 {[%clk
00:22:41]} {[%emt 00:01:44]} 48. Rb6 {[%clk 00:17:55]} {[%emt 00:00:45]} Rd8
{[%clk 00:19:34]} {[%emt 00:03:36]} 49. Rc3 {[%clk 00:17:50]} {[%emt 00:00:35]}
Bd7 {[%clk 00:18:42]} {[%emt 00:01:22]} 50. Bb1 {[%clk 00:13:09]} {[%emt
00:05:12]} Rb8 {[%clk 00:16:07]} {[%emt 00:03:05]} 51. Bc2 {[%clk 00:10:59]}
{[%emt 00:02:40]} Kd8 {[%clk 00:16:00]} {[%emt 00:00:36]} 52. a4 {[%clk
00:09:43]} {[%emt 00:01:46]} Kc7 {[%clk 00:15:35]} {[%emt 00:00:55]} 53. Rb5
{[%clk 00:09:48]} {[%emt 00:00:25]} Kd8 {[%clk 00:14:49]} {[%emt 00:01:17]} 54.
Rbb3 {[%clk 00:09:33]} {[%emt 00:00:45]} Rc8 {[%clk 00:11:32]} {[%emt
00:03:46]} 55. Ra3 {[%clk 00:08:46]} {[%emt 00:01:18]} b6 {[%clk 00:09:06]}
{[%emt 00:02:56]} 56. Bb3 {[%clk 00:06:50]} {[%emt 00:02:26]} c5 {[%clk
00:08:50]} {[%emt 00:00:47]} 57. Kd2 {[%clk 00:01:44]} {[%emt 00:05:36]} c4
{[%clk 00:08:47]} {[%emt 00:00:33]} 58. Bxc4 {[%clk 00:01:55]} {[%emt
00:00:18]} Rxc4 {[%clk 00:08:04]} {[%emt 00:01:13]} 59. Rxc4 {[%clk 00:02:18]}
{[%emt 00:00:07]} dxc4 {[%clk 00:08:32]} {[%emt 00:00:02]} 60. d5 {[%clk
00:01:21]} {[%emt 00:01:27]} cxd3 {[%clk 00:08:47]} {[%emt 00:00:16]} 61. dxe6
{[%clk 00:01:16]} {[%emt 00:00:35]} Bxe6 {[%clk 00:09:07]} {[%emt 00:00:09]} 62.
Kxd3 {[%clk 00:00:58]} {[%emt 00:00:47]} Rc7 {[%clk 00:09:03]} {[%emt
00:00:34]} 63. Ke3 {[%clk 00:01:16]} {[%emt 00:00:12]} Rc4 {[%clk 00:09:09]}
{[%emt 00:00:24]} 64. Rd3+ {[%clk 00:00:53]} {[%emt 00:00:53]} Ke7 {[%clk
00:09:38]} {[%emt 00:00:02]} 65. Rd4 {[%clk 00:00:31]} {[%emt 00:00:52]} Rxd4
{[%clk 00:09:43]} {[%emt 00:00:24]} 66. Kxd4 {[%clk 00:01:00]} {[%emt
00:00:02]} Bb3 {[%clk 00:10:06]} {[%emt 00:00:08]} 0-1

[ePGN "0.1;DGT LiveChess/2.2.5"]

[Event "Tournoi de MI de l'Echiquier du Pays de Bray"]
[Site "Gournay-en-Bray, France"]
[Date "2023.05.17"]
[Round "5.1"]
[White "DEFROMONT, Benjamin"]
[Black "TEREKHOV, Andrey"]
[Result "1-0"]
[TimeControl "1h30/40 + 30 (30s/c)"]
[WhiteTitle "FM"]
[BlackTitle "FM"]
[WhiteFideId "36068829"]
[BlackFideId "4121481"]
[WhiteElo "2347"]
[BlackElo "2314"]

1. e4 {[%clk 01:30:57]} {[%emt 00:00:02]} c5 {[%clk 01:30:50]} {[%emt
00:00:10]} 2. Nf3 {[%clk 01:31:19]} {[%emt 00:00:07]} e6 {[%clk 01:31:16]}
{[%emt 00:00:05]} 3. d4 {[%clk 01:30:35]} {[%emt 00:01:14]} cxd4 {[%clk
01:31:31]} {[%emt 00:00:15]} 4. Nxd4 {[%clk 01:30:58]} {[%emt 00:00:06]} Nc6
{[%clk 01:31:59]} {[%emt 00:00:03]} 5. Nc3 {[%clk 01:31:14]} {[%emt 00:00:13]}
Qc7 {[%clk 01:32:17]} {[%emt 00:00:13]} 6. g4 {[%clk 01:30:58]} {[%emt
00:00:46]} Nxd4 {[%clk 01:15:34]} {[%emt 00:17:13]} 7. Qxd4 {[%clk 01:31:21]}
{[%emt 00:00:06]} a6 {[%clk 01:16:02]} {[%emt 00:00:03]} 8. Be3 {[%clk
01:26:47]} {[%emt 00:05:03]} Ne7 {[%clk 01:15:12]} {[%emt 00:00:51]} 9. O-O-O
{[%clk 01:22:56]} {[%emt 00:04:17]} Nc6 {[%clk 01:15:26]} {[%emt 00:00:49]} 10.
Qd2 {[%clk 01:22:28]} {[%emt 00:00:58]} Be7 {[%clk 01:10:40]} {[%emt 00:05:16]}
11. f4 {[%clk 01:16:02]} {[%emt 00:06:55]} d6 {[%clk 01:09:42]} {[%emt
00:01:29]} 12. h4 {[%clk 01:07:33]} {[%emt 00:08:59]} b5 {[%clk 01:07:12]}
{[%emt 00:03:00]} 13. Qf2 {[%clk 01:01:52]} {[%emt 00:06:11]} Rb8 {[%clk
00:50:42]} {[%emt 00:17:00]} 14. Kb1 {[%clk 00:56:36]} {[%emt 00:05:46]} Bd7
{[%clk 00:40:44]} {[%emt 00:10:29]} 15. g5 {[%clk 00:52:21]} {[%emt 00:04:45]}
Na5 {[%clk 00:35:29]} {[%emt 00:05:45]} 16. Bd3 {[%clk 00:45:53]} {[%emt
00:06:57]} Nc4 {[%clk 00:31:15]} {[%emt 00:04:44]} 17. Bxc4 {[%clk 00:43:12]}
{[%emt 00:03:11]} Qxc4 {[%clk 00:30:24]} {[%emt 00:01:21]} 18. Bd4 {[%clk
00:40:39]} {[%emt 00:03:02]} b4 {[%clk 00:25:55]} {[%emt 00:05:00]} 19. Ne2
{[%emt 00:08:50]} O-O {[%clk 00:19:39]} 20. Ng3 {[%clk 00:34:11]} {[%emt
00:05:23]} f6 {[%clk 00:12:01]} {[%emt 00:08:08]} 21. gxf6 {[%clk 00:26:03]}
{[%emt 00:08:37]} gxf6 {[%clk 00:10:52]} {[%emt 00:01:39]} 22. Nh5 {[%clk
00:26:05]} {[%emt 00:00:28]} Kh8 {[%clk 00:06:53]} {[%emt 00:04:29]} 23. Rhg1
{[%clk 00:26:15]} {[%emt 00:00:20]} e5 {[%clk 00:06:35]} {[%emt 00:00:48]} 24.
fxe5 {[%clk 00:25:26]} {[%emt 00:01:19]} dxe5 {[%clk 00:05:05]} {[%emt
00:02:01]} 25. Qg3 {[%clk 00:22:16]} {[%emt 00:03:39]} Qf7 {[%clk 00:02:24]}
{[%emt 00:03:11]} 26. Bxe5 {[%clk 00:21:42]} {[%emt 00:01:04]} Rg8 {[%clk
00:01:47]} {[%emt 00:01:06]} 27. Qf4 {[%clk 00:21:39]} {[%emt 00:00:33]} Rxg1
{[%clk 00:02:04]} {[%emt 00:00:13]} 28. Rxg1 {[%clk 00:21:20]} {[%emt
00:00:50]} Rf8 {[%clk 00:02:18]} {[%emt 00:00:16]} 29. Bd6 {[%clk 00:20:28]}
{[%emt 00:01:22]} Bxd6 {[%clk 00:01:00]} {[%emt 00:01:48]} 30. Qxd6 {[%clk
00:20:52]} {[%emt 00:00:05]} Be6 {[%clk 00:01:02]} {[%emt 00:00:28]} 31. Rg7
{[%clk 00:18:28]} {[%emt 00:02:54]} Qe8 {[%clk 00:01:27]} {[%emt 00:00:05]} 32.
b3 {[%clk 00:16:56]} {[%emt 00:02:02]} Qd8 {[%clk 00:00:48]} {[%emt 00:01:10]}
33. Qxd8 {[%clk 00:15:09]} {[%emt 00:02:17]} Rxd8 {[%clk 00:01:15]} {[%emt
00:00:03]} 34. Re7 {[%clk 00:15:32]} {[%emt 00:00:06]} 1-0

[Event "Tournoi de MI de l'Echiquier du Pays de Bray"]
[Site "Gournay-en-Bray, France"]
[Date "2023.05.17"]
[Round "5.2"]
[White "ROSHKA, Yevgeniy"]
[Black "HÖGLAUER, Patrick"]
[Result "1-0"]
[TimeControl "1h30/40 + 30 (30s/c)"]
[WhiteTitle "IM"]
[BlackTitle "FM"]
[WhiteFideId "14129558"]
[BlackFideId "1270548"]
[WhiteElo "2508"]
[BlackElo "2280"]

1. e4 {[%clk 01:28:54]} {[%emt 00:01:56]} c5 {[%clk 01:30:49]} {[%emt
00:00:20]} 2. Nc3 {[%clk 01:29:18]} {[%emt 00:00:06]} e6 {[%clk 01:29:14]}
{[%emt 00:02:05]} 3. Nf3 {[%clk 01:23:58]} {[%emt 00:05:49]} Nc6 {[%clk
01:27:06]} {[%emt 00:02:39]} 4. Bb5 {[%clk 01:18:24]} {[%emt 00:06:05]} Qc7
{[%clk 01:23:24]} {[%emt 00:04:12]} 5. O-O {[%clk 01:12:04]} {[%emt 00:06:49]}
a6 {[%clk 01:04:21]} {[%emt 00:19:34]} 6. Bxc6 {[%clk 01:11:41]} {[%emt
00:00:53]} Qxc6 {[%clk 01:04:50]} {[%emt 00:00:02]} 7. d4 {[%clk 01:11:59]}
{[%emt 00:00:12]} cxd4 {[%clk 01:05:08]} {[%emt 00:00:11]} 8. Qxd4 {[%clk
01:12:25]} {[%emt 00:00:04]} b5 {[%clk 00:36:36]} {[%emt 00:29:03]} 9. Bf4
{[%clk 01:00:19]} {[%emt 00:12:35]} Nf6 {[%clk 00:30:41]} {[%emt 00:06:26]} 10.
Nd5 {[%clk 00:50:27]} {[%emt 00:10:22]} Nxd5 {[%clk 00:22:44]} {[%emt
00:08:28]} 11. exd5 {[%clk 00:50:51]} {[%emt 00:00:06]} Qc4 {[%clk 00:22:15]}
{[%emt 00:00:58]} 12. dxe6 {[%clk 00:41:06]} {[%emt 00:10:15]} dxe6 {[%clk
00:22:44]} {[%emt 00:00:01]} 13. Qd2 {[%clk 00:35:44]} {[%emt 00:05:51]} Be7
{[%clk 00:16:08]} {[%emt 00:07:06]} 14. Bd6 {[%clk 00:34:44]} {[%emt 00:01:30]}
Ra7 {[%clk 00:14:20]} {[%emt 00:02:18]} 15. Ne5 {[%clk 00:32:01]} {[%emt
00:03:14]} Qe4 {[%clk 00:14:17]} {[%emt 00:00:33]} 16. Rfe1 {[%clk 00:31:34]}
{[%emt 00:00:56]} Qa8 {[%clk 00:13:10]} {[%emt 00:01:38]} 17. Bxe7 {[%clk
00:28:34]} {[%emt 00:03:30]} Rxe7 {[%clk 00:13:38]} {[%emt 00:00:02]} 18. Qg5
{[%clk 00:28:56]} {[%emt 00:00:07]} Kf8 {[%clk 00:11:56]} {[%emt 00:02:12]} 19.
Rad1 {[%clk 00:28:47]} {[%emt 00:00:38]} h6 {[%clk 00:02:03]} {[%emt 00:10:24]}
20. Rd8+ {[%clk 00:29:10]} {[%emt 00:00:07]} Re8 {[%clk 00:02:32]} 21. Qf4
{[%clk 00:29:27]} {[%emt 00:00:13]} f6 {[%clk 00:01:28]} {[%emt 00:01:35]} 22.
Qb4+ {[%clk 00:29:54]} {[%emt 00:00:03]} 1-0